bitfinex/quotes_BTCUSD_20250414
["timestamp","ask_amount","ask_price","bid_price","bid_amount"]
[1744669874324,8e-07,84488.0,84487.0,1.11066274]
[1744669874492,8e-07,84488.0,84487.0,1.11466274]
[1744669874709,8e-07,84488.0,84487.0,1.11066274]
[1744669875022,0.0010008,84488.0,84487.0,1.11666274]
[1744669875231,0.0010008,84488.0,84487.0,1.11566274]
[1744669876510,0.0010008,84488.0,84487.0,1.11766274]
[1744669876737,8e-07,84488.0,84487.0,1.12965998]
[1744669877962,0.0008448,84502.0,84500.0,0.236686]
[1744669878164,0.0008448,84502.0,84501.0,0.53530629]
[1744669878364,0.0008448,84502.0,84501.0,0.53293994]
[1744669879012,0.0008448,84502.0,84501.0,0.76962294]
[1744669879214,0.00130601,84502.0,84501.0,0.76962294]
[1744669879930,1e-08,84502.0,84501.0,1.20392294]
[1744669880631,4.1e-07,84509.0,84508.0,0.236663]
[1744669880819,4.1e-07,84509.0,84508.0,0.76974122]
[1744669881030,4.1e-07,84509.0,84508.0,1.10974122]
[1744669881169,4.1e-07,84509.0,84508.0,1.15544122]
[1744669881842,4.1e-07,84509.0,84508.0,1.15644122]
[1744669881992,4.1e-07,84509.0,84508.0,1.15844122]
[1744669882189,4.1e-07,84509.0,84508.0,1.17398207]
[1744669882818,0.00658383,84524.0,84523.0,0.236621]
[1744669882819,4.4e-07,84524.0,84523.0,0.236621]
[1744669883160,4.4e-07,84524.0,84523.0,0.76956094]
[1744669883696,0.07236184,84543.0,84538.0,0.236579]
[1744669883697,5.9e-07,84539.0,84538.0,0.236579]
[1744669883829,5.9e-07,84539.0,84538.0,0.35742054]
[1744669885115,5.9e-07,84539.0,84538.0,0.35842054]
[1744669887005,5.9e-07,84539.0,84538.0,0.77051894]
[1744669891136,5.9e-07,84539.0,84538.0,0.6496774]
[1744669893783,5.9e-07,84539.0,84538.0,0.77051894]
[1744669904599,5.9e-07,84539.0,84538.0,1.15571894]
[1744669904819,5.9e-07,84539.0,84538.0,1.20291894]
[1744669910368,0.0004216,84555.0,84538.0,1.20291894]
[1744669910369,4e-07,84555.0,84552.0,0.57654]
[1744669910577,0.0008436,84572.0,84562.0,0.576512]
[1744669910578,9e-07,84563.0,84562.0,0.576512]
[1744669910778,9e-07,84563.0,84562.0,0.69735354]
[1744669911006,0.00013935,84563.0,84562.0,0.7089673]
[1744669911971,0.00013935,84563.0,84562.0,0.69735354]
[1744669912168,0.00013935,84563.0,84562.0,0.69835354]
[1744669912420,0.00013935,84563.0,84562.0,0.70235354]
[1744669912776,0.00013935,84563.0,84562.0,0.70935354]
[1744669913358,3.5e-07,84563.0,84562.0,0.70935354]
[1744669913783,3.5e-07,84563.0,84562.0,0.72109468]
[1744669914186,3.5e-07,84563.0,84562.0,0.76919468]
[1744669916161,0.0008436,84570.0,84569.0,0.576493]
[1744669916395,0.0008436,84570.0,84569.0,1.109432]
[1744669918023,0.0008436,84570.0,84569.0,1.111432]
[1744669918459,0.0008436,84570.0,84569.0,1.115432]
[1744669922029,0.0460436,84570.0,84569.0,0.65459046]
[1744669923251,0.0460436,84570.0,84569.0,0.65059046]
[1744669923477,0.0460436,84570.0,84569.0,0.65359046]
[1744669923678,0.0460436,84570.0,84569.0,0.65159046]
[1744669924121,0.0460436,84570.0,84569.0,0.65259046]
[1744669930725,0.0460436,84570.0,84569.0,0.41609746]
[1744669930939,0.0921436,84570.0,84569.0,0.65259046]
[1744669931547,0.09901944,84570.0,84569.0,0.65259046]
[1744669932130,0.0921436,84570.0,84569.0,0.65259046]
[1744669933110,0.0921436,84570.0,84569.0,0.41609746]
[1744669933273,0.3286336,84570.0,84569.0,0.41609746]
[1744669933673,0.33541823,84570.0,84569.0,0.41609746]
[1744669934259,0.33541823,84570.0,84569.0,0.41509746]
[1744669934455,0.33541823,84570.0,84569.0,0.41209746]
[1744669934663,0.33541823,84570.0,84569.0,0.41309746]
[1744669934923,0.33541823,84570.0,84569.0,0.41509746]
[1744669935133,0.33541823,84570.0,84569.0,0.42248367]
[1744669936080,0.33541823,84570.0,84569.0,0.41509746]
[1744669938639,0.09892823,84570.0,84569.0,0.41509746]
[1744669938817,0.09892823,84570.0,84569.0,0.65159046]
[1744669939225,0.09892823,84570.0,84569.0,0.91509746]
[1744669939437,0.33541823,84570.0,84569.0,0.91509746]
[1744669939647,0.33541823,84570.0,84569.0,0.503]
[1744669944245,0.33541823,84570.0,84569.0,0.502]
[1744669944634,0.33541823,84570.0,84569.0,0.5]
[1744669945583,0.05282823,84570.0,84569.0,0.736493]
[1744669946129,0.0460436,84570.0,84569.0,0.736493]
[1744669946328,0.05274735,84570.0,84569.0,0.736493]
[1744669946903,0.05274735,84570.0,84569.0,0.5]
[1744669947110,0.28923735,84570.0,84569.0,0.5]
[1744669947514,0.05274735,84570.0,84569.0,0.5]
[1744669947747,0.05274735,84570.0,84569.0,0.736493]
[1744669948391,0.05274735,84570.0,84569.0,0.5]
[1744669948744,0.05274735,84570.0,84569.0,0.736493]
[1744669950132,0.00754735,84570.0,84569.0,0.736493]
[1744669950804,0.0008436,84570.0,84569.0,0.736493]
[1744669951475,0.00754735,84570.0,84569.0,0.736493]
[1744669951646,0.0008436,84570.0,84569.0,0.736493]
[1744669951875,0.00754735,84570.0,84569.0,0.736493]
[1744669952095,0.0008436,84570.0,84569.0,0.736493]
[1744669952317,0.00754735,84570.0,84569.0,0.736493]
[1744669952475,0.0008436,84570.0,84569.0,0.736493]
[1744669953078,0.00754735,84570.0,84569.0,0.736493]
[1744669953263,0.0008436,84570.0,84569.0,0.736493]
[1744669953864,0.00754735,84570.0,84569.0,0.736493]
[1744669959680,0.0008436,84570.0,84569.0,0.736493]
[1744669959905,0.00758026,84570.0,84569.0,0.736493]
[1744669960903,0.00758026,84570.0,84569.0,0.5]
[1744669961335,0.00758026,84570.0,84569.0,0.736493]
[1744669961578,0.0008436,84570.0,84569.0,0.736493]
[1744669962042,0.00758026,84570.0,84569.0,0.736493]
[1744669962268,0.0008436,84570.0,84569.0,0.736493]
[1744669962480,0.00758026,84570.0,84569.0,0.736493]
[1744669962657,0.0008436,84570.0,84569.0,0.736493]
[1744669962956,0.00758026,84570.0,84569.0,0.736493]
[1744669963142,0.0008436,84570.0,84569.0,0.736493]
[1744669963600,0.00758026,84570.0,84569.0,0.736493]
[1744669965471,0.00758026,84570.0,84569.0,0.5]
[1744669965713,0.24407026,84570.0,84569.0,0.5]
[1744669967872,0.29087026,84570.0,84569.0,0.5]
[1744669968337,0.4117118,84570.0,84569.0,0.5]
[1744669968534,0.4610118,84570.0,84569.0,0.5]
[1744669969515,0.4630118,84570.0,84569.0,0.5]
[1744669969919,0.47368456,84570.0,84569.0,0.5]
[1744669970454,0.82822541,84570.0,84569.0,0.5]
[1744669972174,0.81368456,84570.0,84569.0,0.5]
[1744669973114,0.8050118,84570.0,84569.0,0.5]
[1744669976734,0.81382085,84570.0,84569.0,0.5]
[1744669977033,0.68417026,84570.0,84569.0,0.5]
[1744669977157,0.06088026,84570.0,84569.0,0.5]
[1744669977362,0.24807026,84570.0,84569.0,0.5]
[1744669982475,0.01158026,84570.0,84569.0,0.5]
[1744669982681,0.01158026,84570.0,84569.0,0.736493]
[1744669982881,0.0048436,84570.0,84569.0,0.736493]
[1744669983327,0.0028436,84570.0,84569.0,0.736493]
[1744669983641,0.0048436,84570.0,84569.0,0.736493]
[1744669983865,0.0028436,84570.0,84569.0,0.7438792]
[1744669984045,0.00955859,84570.0,84569.0,0.7438792]
[1744669984289,0.0038436,84570.0,84569.0,0.7438792]
[1744669984706,0.0018436,84570.0,84569.0,0.7438792]
[1744669985090,0.0018436,84570.0,84569.0,0.736493]
[1744669985458,0.0008436,84570.0,84569.0,0.736493]
[1744669986527,0.0008436,84570.0,84569.0,0.74387852]
[1744669989574,0.0008436,84570.0,84569.0,1.15597598]
[1744669991687,0.0008436,84570.0,84569.0,1.27681752]
[1744669992212,6e-07,84570.0,84569.0,1.37231752]
[1744669992422,6e-07,84570.0,84569.0,1.71231752]
[1744669994219,6e-07,84570.0,84569.0,1.71331752]
[1744669994418,6e-07,84570.0,84569.0,1.71531752]
[1744669994623,6e-07,84570.0,84569.0,1.71431752]
[1744669995010,6e-07,84570.0,84569.0,1.72031752]
[1744669995407,6e-07,84570.0,84569.0,1.71831752]
[1744669995815,6e-07,84570.0,84569.0,1.72031752]
[1744669996240,6e-07,84570.0,84569.0,1.71431752]
[1744669996412,6e-07,84570.0,84569.0,1.71831752]
[1744669998062,6e-07,84570.0,84569.0,1.710932]
[1744670000145,6e-07,84570.0,84569.0,1.275432]
[1744670000997,6e-07,84570.0,84569.0,1.15459046]
[1744670001199,6e-07,84570.0,84569.0,1.15059046]
[1744670001585,6e-07,84570.0,84569.0,1.15459046]
[1744670002012,0.2364906,84570.0,84569.0,0.91809746]
[1744670002217,0.00682367,84570.0,84569.0,0.91609746]
[1744670002436,0.00682367,84570.0,84569.0,1.15459046]
[1744670002635,6e-07,84570.0,84569.0,1.15459046]
[1744670002793,0.00682367,84570.0,84569.0,1.15059046]
[1744670002998,6e-07,84570.0,84569.0,1.15159046]
[1744670003200,0.00682367,84570.0,84569.0,1.15259046]
[1744670003402,6e-07,84570.0,84569.0,1.14959046]
[1744670003599,0.00682367,84570.0,84569.0,1.14959046]
[1744670003804,6e-07,84570.0,84569.0,1.14859046]
[1744670004119,0.00682367,84570.0,84569.0,1.14859046]
[1744670004324,0.00682367,84570.0,84569.0,1.14959046]
[1744670005532,6e-07,84570.0,84569.0,1.14959046]
[1744670018767,6e-07,84570.0,84569.0,1.14735525]
[1744670023282,0.0462006,84570.0,84569.0,1.14735525]
[1744670024050,0.05302004,84570.0,84569.0,1.14735525]
[1744670024503,0.28951004,84570.0,84569.0,0.49876479]
[1744670024841,0.33861004,84570.0,84569.0,0.49876479]
[1744670026353,0.33861004,84570.0,84569.0,0.49776479]
[1744670026837,0.33961004,84570.0,84569.0,0.49776479]
[1744670027363,0.10312004,84570.0,84569.0,0.49776479]
[1744670027557,0.10312004,84570.0,84569.0,0.73425779]
[1744670027895,0.10412004,84570.0,84569.0,0.73425779]
[1744670028301,0.00882004,84570.0,84569.0,0.73425779]
[1744670028759,0.0020006,84570.0,84569.0,0.73425779]
[1744670032988,0.0010006,84570.0,84569.0,0.73425779]
[1744670033370,0.0020006,84570.0,84569.0,0.73425779]
[1744670033571,6e-07,84570.0,84569.0,0.73425779]
[1744670033768,0.0010006,84570.0,84569.0,0.73425779]
[1744670034435,6e-07,84570.0,84569.0,0.73425779]
[1744670034645,0.0010006,84570.0,84569.0,0.73425779]
[1744670035556,0.0010006,84570.0,84569.0,0.74164285]
[1744670035959,0.0010006,84570.0,84569.0,0.73425779]
[1744670036327,0.0010006,84570.0,84569.0,1.14635525]
[1744670038870,6e-07,84570.0,84569.0,1.14635525]
[1744670039624,6e-07,84570.0,84569.0,1.14735525]
[1744670057333,6e-07,84570.0,84569.0,1.26819679]
[1744670057514,6e-07,84570.0,84569.0,1.31669679]
[1744670058439,6e-07,84570.0,84569.0,1.65669679]
[1744670059857,6e-07,84570.0,84569.0,1.70199679]
[1744670060063,6e-07,84570.0,84569.0,1.7135995]
[1744670060399,6e-07,84577.0,84576.0,0.622373]
[1744670060577,6e-07,84577.0,84576.0,0.74321454]
[1744670061552,6e-07,84577.0,84576.0,1.155312]
[1744670062027,6e-07,84577.0,84576.0,1.156312]
[1744670062280,6e-07,84577.0,84576.0,1.110412]
[1744670063209,6e-07,84577.0,84576.0,1.111412]
[1744670069958,6e-07,84577.0,84576.0,0.99057046]
[1744670070162,6e-07,84577.0,84576.0,0.65057046]
[1744670070363,6e-07,84577.0,84576.0,0.41409746]
[1744670070508,0.3308706,84577.0,84576.0,0.41409746]
[1744670070714,0.45171214,84577.0,84576.0,0.002]
[1744670070912,0.45861277,84577.0,84576.0,0.002]
[1744670071328,0.45861277,84577.0,84576.0,0.001]
[1744670071329,0.47067952,84577.0,84576.0,0.001]
[1744670072592,0.28389,84570.0,84569.0,0.49776479]
[1744670072996,0.29071083,84570.0,84569.0,0.49776479]
[1744670073960,0.29171083,84570.0,84569.0,0.49776479]
[1744670074403,0.29271083,84570.0,84569.0,0.49776479]
[1744670079834,0.29071083,84570.0,84569.0,0.49776479]
[1744670080023,0.34521083,84570.0,84569.0,0.49776479]
[1744670093914,0.46605237,84570.0,84569.0,0.49776479]
[1744670094685,0.46405237,84570.0,84569.0,0.49776479]
[1744670095032,0.61017237,84570.0,84569.0,0.49776479]
[1744670095543,0.60717237,84570.0,84569.0,0.49776479]
[1744670095744,0.62471322,84570.0,84569.0,0.49776479]
[1744670095944,0.96171322,84570.0,84569.0,0.49776479]
[1744670096250,0.96471322,84570.0,84569.0,0.49776479]
[1744670096451,0.96171322,84570.0,84569.0,0.49776479]
[1744670096898,0.96571322,84570.0,84569.0,0.49776479]
[1744670107796,0.85427237,84570.0,84569.0,0.49776479]
[1744670107970,0.49694083,84570.0,84569.0,0.49776479]
[1744670108579,0.73343083,84570.0,84569.0,0.49776479]
[1744670108899,0.15694083,84570.0,84569.0,0.73425779]
[1744670110343,0.14994083,84570.0,84569.0,0.73425779]
[1744670110517,0.14712,84570.0,84569.0,0.73425779]
[1744670110717,0.14612,84570.0,84569.0,0.73425779]
[1744670111094,0.14512,84570.0,84569.0,0.73425779]
[1744670111498,0.14712,84570.0,84569.0,0.73425779]
[1744670112138,0.004,84570.0,84569.0,0.73425779]
[1744670112838,0.004,84570.0,84569.0,0.74164384]
[1744670114347,0.004,84570.0,84569.0,1.32248284]
[1744670115267,6e-07,84577.0,84569.0,1.32248284]
[1744670115268,6e-07,84577.0,84576.0,0.236473]
[1744670115969,6e-07,84577.0,84576.0,0.24385905]
[1744670116170,6e-07,84577.0,84576.0,0.41350059]
[1744670116376,6e-07,84577.0,84576.0,0.46220059]
[1744670117803,6e-07,84577.0,84576.0,0.80320059]
[1744670117977,6e-07,84577.0,84576.0,1.21529805]
[1744670119659,6e-07,84577.0,84576.0,1.09445651]
[1744670120776,6e-07,84577.0,84576.0,1.21529805]
[1744670124986,6e-07,84577.0,84576.0,1.21829805]
[1744670125179,6e-07,84577.0,84576.0,1.21729805]
[1744670125393,6e-07,84577.0,84576.0,1.22329805]
[1744670133716,6e-07,84577.0,84576.0,1.22325805]
[1744670145495,6e-07,84577.0,84576.0,1.12575805]
[1744670145701,6e-07,84577.0,84576.0,1.118372]
[1744670146714,6e-07,84577.0,84576.0,1.115372]
[1744670146916,6e-07,84577.0,84576.0,0.99753046]
[1744670147115,6e-07,84577.0,84576.0,0.99153046]
[1744670147562,6e-07,84577.0,84576.0,0.99653046]
[1744670148091,6e-07,84577.0,84576.0,1.00153046]
[1744670148299,6e-07,84577.0,84576.0,0.99153046]
[1744670149135,6e-07,84577.0,84576.0,0.99553046]
[1744670149345,6e-07,84577.0,84576.0,0.99253046]
[1744670150147,6e-07,84577.0,84576.0,0.99453046]
[1744670155484,6e-07,84577.0,84576.0,1.115372]
[1744670156158,6e-07,84577.0,84576.0,1.212672]
[1744670165351,6e-07,84577.0,84576.0,1.115372]
[1744670165482,6e-07,84577.0,84576.0,0.99453046]
[1744670166623,6e-07,84577.0,84576.0,1.115372]
[1744670166846,6e-07,84577.0,84576.0,1.164172]
[1744670180550,6e-07,84589.0,84588.0,0.23644]
[1744670180683,0.00046116,84589.0,84588.0,1.109379]
[1744670181595,0.00046116,84589.0,84588.0,1.110379]
[1744670181982,0.00046116,84589.0,84588.0,1.11976162]
[1744670182381,1.6e-07,84589.0,84588.0,1.11976162]
[1744670182584,1.6e-07,84589.0,84588.0,1.16476162]
[1744670183097,1.6e-07,84589.0,84588.0,1.21036162]
[1744670184086,1.6e-07,84589.0,84588.0,1.22199259]
[1744670185232,1.6e-07,84589.0,84588.0,1.23653344]
[1744670186074,1.6e-07,84589.0,84588.0,1.13139259]
[1744670186280,1.6e-07,84589.0,84588.0,1.12939259]
[1744670186769,1.6e-07,84589.0,84588.0,1.13339259]
[1744670187436,1.6e-07,84589.0,84588.0,1.13239259]
[1744670187637,1.6e-07,84589.0,84588.0,1.14993344]
[1744670188040,1.6e-07,84589.0,84588.0,1.14255082]
[1744670188756,0.0004217,84597.0,84594.0,0.011821]
[1744670189003,0.00055981,84597.0,84596.0,0.34]
[1744670189200,0.00055981,84597.0,84596.0,0.46084154]
[1744670190261,0.00055981,84597.0,84596.0,0.46284154]
[1744670191324,0.00055981,84597.0,84596.0,0.69925854]
[1744670191542,0.00055981,84597.0,84596.0,0.70025854]
[1744670194693,0.00055981,84597.0,84596.0,1.11235584]
[1744670196271,0.00055981,84597.0,84596.0,1.11973756]
[1744670196472,8.1e-07,84597.0,84596.0,1.11973756]
[1744670197552,8.1e-07,84597.0,84596.0,1.11873756]
[1744670197962,8.1e-07,84597.0,84596.0,1.12173756]
[1744670198909,8.1e-07,84597.0,84596.0,1.11973756]
[1744670199487,8.1e-07,84597.0,84596.0,1.12273756]
[1744670200879,8.1e-07,84597.0,84596.0,0.71064026]
[1744670204138,0.04950081,84597.0,84596.0,0.36325854]
[1744670205745,0.04950081,84597.0,84596.0,0.35725854]
[1744670205960,0.04950081,84597.0,84596.0,0.36225854]
[1744670206163,0.09510081,84597.0,84596.0,0.005]
[1744670206297,0.11427152,84597.0,84596.0,0.005]
[1744670206502,0.11427152,84597.0,84596.0,0.003]
[1744670206928,0.11427152,84597.0,84596.0,0.005]
[1744670207127,0.11427152,84597.0,84596.0,0.002]
[1744670207332,0.0943,84592.0,84589.0,0.248258]
[1744670207551,0.342551,84592.0,84589.0,0.011821]
[1744670207709,0.06798374,84591.0,84589.0,0.011821]
[1744670208054,0.0943,84590.0,84588.0,0.248261]
[1744670208253,0.0943,84589.0,84588.0,0.248261]
[1744670208519,0.11338207,84589.0,84584.0,0.011822]
[1744670208709,0.0454,84586.0,84585.0,0.011822]
[1744670209051,0.0454,84586.0,84580.0,0.248283]
[1744670209052,0.0943,84584.0,84582.0,0.236455]
[1744670209456,0.01902365,84583.0,84582.0,0.236455]
[1744670209787,0.0943,84584.0,84583.0,0.236454]
[1744670211503,0.0004217,84604.0,84583.0,0.236454]
[1744670211504,0.0454,84589.0,84588.0,0.23644]
[1744670211698,0.0489,84593.0,84592.0,0.236428]
[1744670213041,0.0499,84593.0,84592.0,0.236428]
[1744670216045,0.001,84593.0,84592.0,0.236428]
[1744670217954,8.1e-07,84597.0,84596.0,0.236417]
[1744670218362,0.01987243,84597.0,84596.0,0.236417]
[1744670219026,0.02087243,84597.0,84596.0,0.236417]
[1744670220330,0.011821,84592.0,84588.0,0.011822]
[1744670220531,0.011821,84589.0,84585.0,0.236446]
[1744670220737,0.011821,84589.0,84587.0,0.236442]
[1744670220962,0.011822,84587.0,84584.0,0.011822]
[1744670221136,0.02057478,84586.0,84584.0,0.248273]
[1744670221345,0.02057478,84586.0,84585.0,0.236448]
[1744670221668,0.011821,84590.0,84588.0,0.001]
[1744670221881,0.0969,84591.0,84589.0,0.236437]
[1744670222114,0.0969,84591.0,84590.0,0.236434]
[1744670222925,0.0474,84599.0,84596.0,0.236417]
[1744670223394,0.05922,84599.0,84595.0,0.236419]
[1744670223566,0.05922,84599.0,84596.0,0.236417]
[1744670223768,0.0474,84599.0,84596.0,0.236417]
[1744670224003,0.0474,84599.0,84591.0,0.011821]
[1744670224004,0.0474,84595.0,84589.0,0.236436]
[1744670224207,0.0474,84595.0,84592.0,0.011821]
[1744670224356,0.0474,84595.0,84594.0,0.236423]
[1744670225646,0.0474,84595.0,84594.0,0.236303]
[1744670225859,0.0504,84595.0,84594.0,0.236303]
[1744670227694,0.06897087,84595.0,84594.0,0.236303]
[1744670228024,0.02257087,84595.0,84594.0,0.236303]
[1744670228227,0.002,84595.0,84594.0,0.236303]
[1744670228630,8.1e-07,84597.0,84596.0,0.236417]
[1744670229131,0.02057335,84597.0,84596.0,0.236417]
[1744670229298,8.1e-07,84597.0,84596.0,0.236417]
[1744670229503,0.02057335,84597.0,84596.0,0.236417]
[1744670229711,8.1e-07,84597.0,84596.0,0.236417]
[1744670229905,0.02057335,84597.0,84596.0,0.236417]
[1744670230076,8.1e-07,84597.0,84596.0,0.236417]
[1744670230670,0.02157335,84597.0,84596.0,0.236417]
[1744670230799,0.02157335,84597.0,84594.0,0.248124]
[1744670230800,0.236419,84596.0,84594.0,0.011821]
[1744670230997,0.02057087,84595.0,84594.0,0.236423]
[1744670231211,0.00100081,84597.0,84595.0,0.236419]
[1744670231547,0.02057842,84596.0,84595.0,0.236419]
[1744670232751,0.011821,84590.0,84587.0,0.236442]
[1744670232970,0.0205643,84589.0,84587.0,0.011822]
[1744670233174,0.011822,84586.0,84578.0,0.011823]
[1744670233379,0.011823,84578.0,84570.0,0.248313]
[1744670233626,0.297796,84577.0,84573.0,0.011824]
[1744670233820,0.297796,84577.0,84573.0,0.248304]
[1744670234018,0.297796,84577.0,84569.0,0.50958879]
[1744670234019,0.23649,84570.0,84569.0,0.49776479]
[1744670234218,0.30309421,84570.0,84569.0,0.49776479]
[1744670235132,0.35259421,84570.0,84569.0,0.49776479]
[1744670235333,0.35268661,84570.0,84569.0,0.49776479]
[1744670235510,0.35268661,84570.0,84569.0,0.49976479]
[1744670235910,0.35268661,84570.0,84569.0,0.50076479]
[1744670236318,0.35268661,84570.0,84569.0,0.49976479]
[1744670237143,0.35268661,84570.0,84569.0,0.49776479]
[1744670237781,0.11619661,84570.0,84569.0,0.49776479]
[1744670237987,0.02059661,84570.0,84569.0,0.73425779]
[1744670238191,9.24e-05,84570.0,84569.0,0.73425779]
[1744670240486,0.02053362,84570.0,84569.0,0.73425779]
[1744670240784,9.24e-05,84570.0,84569.0,0.73425779]
[1744670241682,9.24e-05,84570.0,84569.0,0.49776479]
[1744670241830,0.2365824,84570.0,84569.0,0.49776479]
[1744670242047,0.25689767,84570.0,84569.0,0.49776479]
[1744670242550,0.30459767,84570.0,84569.0,0.49776479]
[1744670242934,0.35349767,84570.0,84569.0,0.49776479]
[1744670244676,0.11700767,84570.0,84569.0,0.49776479]
[1744670244886,0.11700767,84570.0,84569.0,0.73425779]
[1744670245176,0.07030767,84570.0,84569.0,0.73425779]
[1744670245383,0.02340767,84570.0,84569.0,0.73425779]
[1744670245624,0.0030924,84570.0,84569.0,0.73425779]
[1744670246476,0.0020924,84570.0,84569.0,0.73425779]
[1744670247259,9.24e-05,84570.0,84569.0,0.73425779]
[1744670247554,0.02038935,84570.0,84569.0,0.73425779]
[1744670250691,9.24e-05,84570.0,84569.0,0.73425779]
[1744670251270,9.24e-05,84570.0,84569.0,0.49776479]
[1744670251509,0.2365824,84570.0,84569.0,0.49776479]
[1744670251683,0.25692357,84570.0,84569.0,0.49776479]
[1744670252836,0.25992357,84570.0,84569.0,0.49776479]
[1744670253761,0.02343357,84570.0,84569.0,0.49776479]
[1744670253918,0.02343357,84570.0,84569.0,0.73425779]
[1744670254121,0.02543357,84570.0,84569.0,0.73425779]
[1744670254325,0.0020924,84570.0,84569.0,0.73425779]
[1744670254489,9.24e-05,84570.0,84569.0,0.73425779]
[1744670254685,0.0020924,84570.0,84569.0,0.49776479]
[1744670254892,0.2395824,84570.0,84569.0,0.49776479]
[1744670255190,0.0234165,84570.0,84569.0,0.73425779]
[1744670255394,0.0224165,84570.0,84569.0,0.73425779]
[1744670261066,0.0020924,84570.0,84569.0,0.73425779]
[1744670261521,0.02241777,84570.0,84569.0,0.73425779]
[1744670261722,0.0020924,84570.0,84569.0,0.73425779]
[1744670261939,0.02241777,84570.0,84569.0,0.73425779]
[1744670262115,0.0020924,84570.0,84569.0,0.73425779]
[1744670262315,0.02241777,84570.0,84569.0,0.73425779]
[1744670262519,0.0020924,84570.0,84569.0,0.73425779]
[1744670262898,0.02240207,84570.0,84569.0,0.73425779]
[1744670263099,0.0020924,84570.0,84569.0,0.73425779]
[1744670263354,0.02240207,84570.0,84569.0,0.73425779]
[1744670266119,0.0020924,84570.0,84569.0,0.73425779]
[1744670266525,0.02240102,84570.0,84569.0,0.73425779]
[1744670266722,0.0020924,84570.0,84569.0,0.73425779]
[1744670267023,0.02240102,84570.0,84569.0,0.73425779]
[1744670267177,0.02240102,84570.0,84569.0,0.49776479]
[1744670268214,0.02240102,84570.0,84569.0,0.73425779]
[1744670268418,0.02240102,84570.0,84569.0,0.49776479]
[1744670268995,0.02240102,84570.0,84569.0,0.73425779]
[1744670269610,0.0020924,84570.0,84569.0,0.73425779]
[1744670270137,0.02239998,84570.0,84569.0,0.73425779]
[1744670270344,0.0020924,84570.0,84569.0,0.73425779]
[1744670270541,0.02239998,84570.0,84569.0,0.73425779]
[1744670270702,0.0020924,84570.0,84569.0,0.73425779]
[1744670270906,0.02239998,84570.0,84569.0,0.73425779]
[1744670271228,0.0020924,84570.0,84569.0,0.73425779]
[1744670272690,0.02239998,84570.0,84569.0,0.73425779]
[1744670272902,0.0020924,84570.0,84569.0,0.73425779]
[1744670273061,0.02239998,84570.0,84569.0,0.73425779]
[1744670276931,0.0020924,84570.0,84569.0,0.73425779]
[1744670277295,0.02239721,84570.0,84569.0,0.73425779]
[1744670277493,0.0020924,84570.0,84569.0,0.73425779]
[1744670277695,0.02239721,84570.0,84569.0,0.73425779]
[1744670277898,0.0020924,84570.0,84569.0,0.73425779]
[1744670278306,0.02239721,84570.0,84569.0,0.73425779]
[1744670278658,0.0020924,84570.0,84569.0,0.73425779]
[1744670278857,0.02239721,84570.0,84569.0,0.73425779]
[1744670279994,0.0020924,84570.0,84569.0,0.73425779]
[1744670283540,9.24e-05,84570.0,84569.0,0.73425779]
[1744670284445,9.24e-05,84570.0,84569.0,0.73525779]
[1744670285449,9.24e-05,84570.0,84569.0,0.73625779]
[1744670292101,9.24e-05,84570.0,84569.0,0.85709933]
[1744670293056,9.24e-05,84570.0,84569.0,0.90359933]
[1744670294553,9.24e-05,84570.0,84569.0,1.31569933]
[1744670295380,9.24e-05,84570.0,84569.0,1.26919933]
[1744670298987,9.24e-05,84570.0,84569.0,1.14835779]
[1744670301587,9.24e-05,84570.0,84569.0,1.26919933]
[1744670302509,9.24e-05,84570.0,84569.0,1.31689933]
[1744670302743,9.24e-05,84570.0,84569.0,1.70519933]
[1744670312354,4e-07,84570.0,84569.0,1.70519933]
[1744670313264,4e-07,84570.0,84569.0,1.70419933]
[1744670313563,4e-07,84570.0,84569.0,1.70619933]
[1744670314037,4e-07,84570.0,84569.0,1.70519933]
[1744670314251,4e-07,84570.0,84569.0,1.70719933]
[1744670314759,4e-07,84570.0,84569.0,1.70319933]
[1744670314981,4e-07,84570.0,84569.0,1.70719933]
[1744670315206,4e-07,84570.0,84569.0,1.71019933]
[1744670318636,4e-07,84577.0,84576.0,0.576473]
[1744670318838,4e-07,84577.0,84576.0,0.74241454]
[1744670319039,3.9e-07,84577.0,84576.0,0.74241454]
[1744670319564,3.9e-07,84577.0,84576.0,0.74979801]
[1744670319960,3.9e-07,84577.0,84576.0,0.75279801]
[1744670320449,3.9e-07,84577.0,84576.0,0.75379801]
[1744670321048,3.9e-07,84577.0,84576.0,0.75279801]
[1744670321252,3.9e-07,84577.0,84576.0,0.75479801]
[1744670323534,3.9e-07,84577.0,84576.0,0.81483886]
[1744670323738,0.0487217,84604.0,84603.0,0.236398]
[1744670323993,0.04876771,84604.0,84603.0,0.236398]
[1744670324182,0.0183196,84604.0,84603.0,0.24378147]
[1744670324404,0.00046771,84604.0,84603.0,0.24378147]
[1744670324958,0.00346771,84604.0,84603.0,0.24378147]
[1744670325156,0.00846771,84604.0,84603.0,0.24378147]
[1744670325770,0.01146771,84604.0,84603.0,0.24378147]
[1744670326250,0.00846771,84604.0,84603.0,0.36462301]
[1744670326532,0.00946771,84604.0,84603.0,0.77672262]
[1744670327427,0.00046771,84604.0,84603.0,0.77672262]
[1744670327583,0.00146771,84604.0,84603.0,0.77672262]
[1744670327791,0.00246771,84604.0,84603.0,0.77672262]
[1744670327996,0.00046771,84604.0,84603.0,0.77672262]
[1744670328386,0.00146771,84604.0,84603.0,0.77672262]
[1744670329072,0.03544799,84612.0,84611.0,0.236375]
[1744670329476,0.05330652,84612.0,84611.0,0.24375847]
[1744670330376,0.02563679,84612.0,84611.0,0.24375847]
[1744670330578,0.02563679,84612.0,84611.0,0.236375]
[1744670330751,0.02863679,84612.0,84611.0,0.236375]
[1744670333278,0.02863679,84612.0,84611.0,0.24375681]
[1744670335893,0.005,84612.0,84611.0,0.36459835]
[1744670336167,0.0004221,84623.0,84618.0,0.236356]
[1744670336450,0.0004221,84623.0,84618.0,0.35719754]
[1744670336451,0.002046,84619.0,84618.0,0.35719754]
[1744670336581,0.002046,84619.0,84618.0,0.77667896]
[1744670337348,0.004046,84619.0,84618.0,0.77667896]
[1744670337887,0.005046,84619.0,84618.0,0.77667896]
[1744670341322,0.005046,84619.0,84618.0,0.76929715]
[1744670341892,0.005046,84619.0,84618.0,0.64845561]
[1744670350865,0.005046,84619.0,84618.0,0.76929715]
[1744670356659,0.005046,84619.0,84618.0,0.64845561]
[1744670362438,0.005046,84619.0,84618.0,0.6558364]
[1744670362677,0.005046,84619.0,84618.0,0.77667794]
[1744670364319,0.005046,84619.0,84618.0,0.76929715]
[1744670368655,0.005046,84619.0,84618.0,0.7766776]
[1744670369994,0.005046,84619.0,84618.0,0.64845561]